[Event "*** Titled Tuesday Blitz"]
[Site "Chess.com"]
[Date "2020.05.19"]
[Round "1"]
[White "hoshor"]
[Black "Moon_stone123"]
[Result "1/2-1/2"]
[WhiteElo "2206"]
[BlackElo "2516"]
[TimeControl "180+1"]
[EndTime "12:09:11 PDT"]
[Termination "Game drawn by stalemate"]

1. d4 {[%clk 0:03:00.9]} 1... Nf6 {[%clk 0:02:58.6]} 2. c4 {[%clk 0:03:01.2]}
2... g6 {[%clk 0:02:56.2]} 3. Nc3 {[%clk 0:03:01.5]} 3... Bg7 {[%clk 0:02:54.4]}
4. e4 {[%clk 0:03:01.7]} 4... O-O {[%clk 0:02:54.1]} 5. Nge2 {[%clk 0:03:02]}
5... d6 {[%clk 0:02:53.8]} 6. Ng3 {[%clk 0:03:02.3]} 6... c5 {[%clk 0:02:53.6]}
7. d5 {[%clk 0:03:02.7]} 7... e6 {[%clk 0:02:53.6]} 8. Be2 {[%clk 0:03:03]} 8...
exd5 {[%clk 0:02:53.1]} 9. exd5 {[%clk 0:03:03.9]} 9... Re8 {[%clk 0:02:51.5]}
10. O-O {[%clk 0:03:04]} 10... a6 {[%clk 0:02:51.3]} 11. a4 {[%clk 0:03:03.6]}
11... Nbd7 {[%clk 0:02:50.8]} 12. h3 {[%clk 0:03:03.9]} 12... Qc7 {[%clk
0:02:48.5]} 13. Bg5 {[%clk 0:03:03.2]} 13... h6 {[%clk 0:02:45.8]} 14. Bd2
{[%clk 0:03:03.3]} 14... b6 {[%clk 0:02:28.4]} 15. f4 {[%clk 0:03:02.3]} 15...
h5 {[%clk 0:02:17]} 16. Bd3 {[%clk 0:03:00.3]} 16... h4 {[%clk 0:01:45.7]} 17.
Nge2 {[%clk 0:03:00.3]} 17... Nh5 {[%clk 0:01:45]} 18. Qc2 {[%clk 0:02:59.4]}
18... Ndf6 {[%clk 0:01:39.6]} 19. f5 {[%clk 0:02:58.3]} 19... Bxf5 {[%clk
0:01:26.3]} 20. Bxf5 {[%clk 0:02:59.2]} 20... gxf5 {[%clk 0:01:25.1]} 21. Qxf5
{[%clk 0:02:56.7]} 21... Re5 {[%clk 0:01:22.6]} 22. Qf2 {[%clk 0:02:48.6]} 22...
Rae8 {[%clk 0:01:21.9]} 23. Rae1 {[%clk 0:02:34.9]} 23... Qe7 {[%clk 0:01:16.4]}
24. Qxh4 {[%clk 0:02:22.5]} 24... Nxd5 {[%clk 0:01:16]} 25. Qxe7 {[%clk
0:02:22.3]} 25... Nxe7 {[%clk 0:01:15.8]} 26. g4 {[%clk 0:02:17]} 26... Nf6
{[%clk 0:01:12.7]} 27. Bf4 {[%clk 0:02:14.8]} 27... Re6 {[%clk 0:01:10.5]} 28.
Ng3 {[%clk 0:02:13.3]} 28... Ng6 {[%clk 0:01:10.7]} 29. Rxe6 {[%clk 0:02:02.9]}
29... Rxe6 {[%clk 0:01:11.6]} 30. Bd2 {[%clk 0:02:01]} 30... Nd7 {[%clk
0:01:08.2]} 31. Nf5 {[%clk 0:01:57.2]} 31... Ne7 {[%clk 0:01:04.2]} 32. Nxg7
{[%clk 0:01:53.7]} 32... Kxg7 {[%clk 0:01:05.1]} 33. Bf4 {[%clk 0:01:45.4]}
33... Ne5 {[%clk 0:01:04.6]} 34. Bxe5+ {[%clk 0:01:43.8]} 34... dxe5 {[%clk
0:01:02.1]} 35. Ne4 {[%clk 0:01:43.1]} 35... Ng6 {[%clk 0:01:00.6]} 36. Rd1
{[%clk 0:01:40.5]} 36... Nf4 {[%clk 0:01:00.7]} 37. Kh2 {[%clk 0:01:39.4]} 37...
Rh6 {[%clk 0:01:00.6]} 38. Nf2 {[%clk 0:01:31.2]} 38... Re6 {[%clk 0:00:52.2]}
39. Ne4 {[%clk 0:01:30.2]} 39... Rh6 {[%clk 0:00:48.8]} 40. Nf2 {[%clk
0:01:29.9]} 40... Kf6 {[%clk 0:00:48.5]} 41. Kg3 {[%clk 0:01:26.6]} 41... Ke7
{[%clk 0:00:45.8]} 42. h4 {[%clk 0:01:25]} 42... f6 {[%clk 0:00:45.7]} 43. Ne4
{[%clk 0:01:23.6]} 43... Ne2+ {[%clk 0:00:45.9]} 44. Kf2 {[%clk 0:01:22.4]}
44... Nd4 {[%clk 0:00:46.4]} 45. Kg3 {[%clk 0:01:21.4]} 45... Rg6 {[%clk
0:00:45.7]} 46. g5 {[%clk 0:01:12.4]} 46... f5 {[%clk 0:00:44.3]} 47. Nf6 {[%clk
0:01:10.2]} 47... Ke6 {[%clk 0:00:31.8]} 48. Nd5 {[%clk 0:01:07.9]} 48... Rg8
{[%clk 0:00:31.5]} 49. Rd2 {[%clk 0:01:00.9]} 49... Rb8 {[%clk 0:00:31.1]} 50.
h5 {[%clk 0:00:57.1]} 50... Kf7 {[%clk 0:00:31]} 51. Rf2 {[%clk 0:00:51.6]}
51... f4+ {[%clk 0:00:28.7]} 52. Kg4 {[%clk 0:00:51.2]} 52... Ke6 {[%clk
0:00:27.6]} 53. h6 {[%clk 0:00:49.3]} 53... Rh8 {[%clk 0:00:26.8]} 54. Kh5
{[%clk 0:00:48.6]} 54... Nf5 {[%clk 0:00:24.7]} 55. Kg6 {[%clk 0:00:47]} 55...
Rg8+ {[%clk 0:00:23.2]} 56. Kh5 {[%clk 0:00:46.6]} 56... Ng3+ {[%clk 0:00:23]}
57. Kg4 {[%clk 0:00:46.5]} 57... Ne4 {[%clk 0:00:21.1]} 58. Rh2 {[%clk
0:00:38.7]} 58... Nxg5 {[%clk 0:00:20.2]} 59. Nxb6 {[%clk 0:00:20.4]} 59... Nh7+
{[%clk 0:00:18.4]} 60. Kf3 {[%clk 0:00:20.3]} 60... Kf5 {[%clk 0:00:18.7]} 61.
Nd5 {[%clk 0:00:19.6]} 61... e4+ {[%clk 0:00:19]} 62. Ke2 {[%clk 0:00:19.3]}
62... f3+ {[%clk 0:00:18.1]} 63. Ke3 {[%clk 0:00:19.1]} 63... Rg2 {[%clk
0:00:18]} 64. Rxg2 {[%clk 0:00:17.9]} 64... fxg2 {[%clk 0:00:18.9]} 65. Kf2
{[%clk 0:00:18.3]} 65... Ke5 {[%clk 0:00:18.4]} 66. Kxg2 {[%clk 0:00:18.2]}
66... Kd4 {[%clk 0:00:19]} 67. Kf2 {[%clk 0:00:17.2]} 67... Kxc4 {[%clk
0:00:19]} 68. Ne3+ {[%clk 0:00:17.4]} 68... Kb3 {[%clk 0:00:19.3]} 69. Ke2
{[%clk 0:00:16.6]} 69... Kxb2 {[%clk 0:00:19.6]} 70. Ng4 {[%clk 0:00:17]} 70...
c4 {[%clk 0:00:19.3]} 71. Ke3 {[%clk 0:00:17.9]} 71... c3 {[%clk 0:00:19.5]} 72.
Kxe4 {[%clk 0:00:18.8]} 72... c2 {[%clk 0:00:19.9]} 73. Nf2 {[%clk 0:00:18]}
73... c1=Q {[%clk 0:00:16.6]} 74. Nd3+ {[%clk 0:00:17.9]} 74... Kc2 {[%clk
0:00:17.2]} 75. Nxc1 {[%clk 0:00:18.6]} 75... Kxc1 {[%clk 0:00:18.1]} 76. Kd3
{[%clk 0:00:18.3]} 76... Kb2 {[%clk 0:00:17.8]} 77. Kc4 {[%clk 0:00:18.5]} 77...
Ka3 {[%clk 0:00:17.8]} 78. a5 {[%clk 0:00:18.7]} 78... Ka4 {[%clk 0:00:17.8]}
79. Kc5 {[%clk 0:00:19.3]} 79... Kxa5 {[%clk 0:00:18.2]} 80. Kc4 {[%clk
0:00:19.7]} 80... Ka4 {[%clk 0:00:18.5]} 81. Kc3 {[%clk 0:00:19.8]} 81... a5
{[%clk 0:00:19.4]} 82. Kc2 {[%clk 0:00:20]} 82... Kb4 {[%clk 0:00:19.7]} 83. Kb1
{[%clk 0:00:20.4]} 83... a4 {[%clk 0:00:19.9]} 84. Ka2 {[%clk 0:00:21.3]} 84...
Ka5 {[%clk 0:00:19.8]} 85. Kb2 {[%clk 0:00:22.2]} 85... Kb5 {[%clk 0:00:20.4]}
86. Ka2 {[%clk 0:00:22.6]} 86... Kb4 {[%clk 0:00:21.3]} 87. Kb2 {[%clk
0:00:23.1]} 87... a3+ {[%clk 0:00:20.9]} 88. Ka2 {[%clk 0:00:24]} 88... Ka4
{[%clk 0:00:21.8]} 89. Ka1 {[%clk 0:00:24.1]} 89... Kb3 {[%clk 0:00:20.2]} 90.
Kb1 {[%clk 0:00:25]} 90... Nf6 {[%clk 0:00:19.1]} 91. Ka1 {[%clk 0:00:25.9]}
91... Nh7 {[%clk 0:00:15.2]} 92. Kb1 {[%clk 0:00:26.8]} 92... Ng5 {[%clk
0:00:15.8]} 93. Ka1 {[%clk 0:00:26.1]} 93... Nf7 {[%clk 0:00:08.2]} 94. h7
{[%clk 0:00:25.8]} 94... Nh8 {[%clk 0:00:08.5]} 95. Kb1 {[%clk 0:00:25.1]} 95...
Ng6 {[%clk 0:00:09]} 96. Ka1 {[%clk 0:00:25.4]} 96... Kb4 {[%clk 0:00:08.6]} 97.
Ka2 {[%clk 0:00:24.9]} 97... Ka4 {[%clk 0:00:09.5]} 98. Ka1 {[%clk 0:00:24.9]}
98... Kb3 {[%clk 0:00:10.3]} 99. Kb1 {[%clk 0:00:24.9]} 99... a2+ {[%clk
0:00:10]} 100. Ka1 {[%clk 0:00:25]} 100... Ka3 {[%clk 0:00:10.9]} 101. h8=Q
{[%clk 0:00:24.3]} 101... Nxh8 {[%clk 0:00:11.8]} 1/2-1/2

[Event "*** Titled Tuesday Blitz"]
[Site "Chess.com"]
[Date "2020.05.19"]
[Round "1"]
[White "nurgyulsalimova"]
[Black "The_Machine04"]
[Result "1/2-1/2"]
[WhiteElo "2578"]
[BlackElo "2298"]
[TimeControl "180+1"]
[EndTime "12:09:14 PDT"]
[Termination "Game drawn by stalemate"]

1. d4 {[%clk 0:02:59.9]} 1... d6 {[%clk 0:02:59.4]} 2. Nf3 {[%clk 0:02:58.6]}
2... Nf6 {[%clk 0:02:58.9]} 3. g3 {[%clk 0:02:58.8]} 3... Nbd7 {[%clk
0:02:52.4]} 4. Bg2 {[%clk 0:02:59.3]} 4... e5 {[%clk 0:02:52.3]} 5. O-O {[%clk
0:02:46.5]} 5... Be7 {[%clk 0:02:51.8]} 6. c4 {[%clk 0:02:38.8]} 6... O-O {[%clk
0:02:50.4]} 7. Nc3 {[%clk 0:02:31.8]} 7... c6 {[%clk 0:02:49.3]} 8. dxe5 {[%clk
0:02:30.8]} 8... dxe5 {[%clk 0:02:41.5]} 9. Bg5 {[%clk 0:02:28.6]} 9... h6
{[%clk 0:02:39.5]} 10. Bxf6 {[%clk 0:02:27]} 10... Bxf6 {[%clk 0:02:36.6]} 11.
Qc2 {[%clk 0:02:20.8]} 11... Qc7 {[%clk 0:02:32.6]} 12. Rfd1 {[%clk 0:02:18.3]}
12... Be7 {[%clk 0:02:30]} 13. Rac1 {[%clk 0:02:07.2]} 13... Nf6 {[%clk
0:02:28.3]} 14. Rd2 {[%clk 0:01:13.6]} 14... Be6 {[%clk 0:02:25.7]} 15. b3
{[%clk 0:01:12.7]} 15... Rfd8 {[%clk 0:02:21.9]} 16. Rcd1 {[%clk 0:01:12]} 16...
Rxd2 {[%clk 0:02:20.5]} 17. Rxd2 {[%clk 0:01:12.7]} 17... Rd8 {[%clk 0:02:20.9]}
18. Rxd8+ {[%clk 0:01:10.3]} 18... Bxd8 {[%clk 0:02:21.8]} 19. Nd2 {[%clk
0:01:00.3]} 19... Be7 {[%clk 0:02:20]} 20. Nde4 {[%clk 0:00:55.9]} 20... Nxe4
{[%clk 0:02:15.7]} 21. Bxe4 {[%clk 0:00:55.6]} 21... Qd6 {[%clk 0:02:08.5]} 22.
Bf5 {[%clk 0:00:32.4]} 22... g6 {[%clk 0:01:28]} 23. Bxe6 {[%clk 0:00:32.1]}
23... Qxe6 {[%clk 0:01:26.8]} 24. Qd3 {[%clk 0:00:24.6]} 24... Kg7 {[%clk
0:01:22.9]} 25. Kg2 {[%clk 0:00:21.3]} 25... Qd6 {[%clk 0:01:10.6]} 26. Qxd6
{[%clk 0:00:20.1]} 26... Bxd6 {[%clk 0:01:11.5]} 27. Kf3 {[%clk 0:00:17.6]}
27... f5 {[%clk 0:01:10.9]} 28. e4 {[%clk 0:00:17.2]} 28... Bc5 {[%clk
0:01:04.6]} 29. Ke2 {[%clk 0:00:16.1]} 29... Kf6 {[%clk 0:01:01.3]} 30. f3
{[%clk 0:00:06.7]} 30... Bd4 {[%clk 0:01:00.2]} 31. Nb1 {[%clk 0:00:05.3]} 31...
h5 {[%clk 0:00:47.3]} 32. Nd2 {[%clk 0:00:05]} 32... Bc3 {[%clk 0:00:27.7]} 33.
Nf1 {[%clk 0:00:05]} 33... f4 {[%clk 0:00:21.4]} 34. gxf4 {[%clk 0:00:04.8]}
34... exf4 {[%clk 0:00:22.3]} 35. Kd3 {[%clk 0:00:05.7]} 35... Bb4 {[%clk
0:00:20.4]} 36. Kd4 {[%clk 0:00:05.4]} 36... Ke6 {[%clk 0:00:19]} 37. c5 {[%clk
0:00:05.4]} 37... g5 {[%clk 0:00:18.2]} 38. Kc4 {[%clk 0:00:04.4]} 38... Be1
{[%clk 0:00:18.2]} 39. h3 {[%clk 0:00:04.9]} 39... Ke5 {[%clk 0:00:17.7]} 40.
Kd3 {[%clk 0:00:05.4]} 40... Bb4 {[%clk 0:00:16]} 41. Kc4 {[%clk 0:00:05.6]}
41... a5 {[%clk 0:00:16.4]} 42. Nh2 {[%clk 0:00:04.2]} 42... Be1 {[%clk
0:00:14.8]} 43. Nf1 {[%clk 0:00:04.5]} 43... g4 {[%clk 0:00:12.8]} 44. hxg4
{[%clk 0:00:04.4]} 44... hxg4 {[%clk 0:00:13.7]} 45. fxg4 {[%clk 0:00:05.2]}
45... Kxe4 {[%clk 0:00:14.2]} 46. g5 {[%clk 0:00:05.6]} 46... Kf5 {[%clk
0:00:14.4]} 47. Kd3 {[%clk 0:00:05.1]} 47... Kxg5 {[%clk 0:00:14.5]} 48. Ke2
{[%clk 0:00:05.8]} 48... Bb4 {[%clk 0:00:14.3]} 49. Kf3 {[%clk 0:00:05.1]} 49...
Bxc5 {[%clk 0:00:13.7]} 50. Nd2 {[%clk 0:00:05.6]} 50... Kf5 {[%clk 0:00:10.7]}
51. Nc4 {[%clk 0:00:05.4]} 51... Bb4 {[%clk 0:00:10.6]} 52. Nb6 {[%clk 0:00:05]}
52... Ke5 {[%clk 0:00:07.7]} 53. Nc4+ {[%clk 0:00:04.7]} 53... Kf5 {[%clk
0:00:07.1]} 54. Nb6 {[%clk 0:00:04.5]} 54... Bc5 {[%clk 0:00:04]} 55. Nd7 {[%clk
0:00:04.4]} 55... Bd6 {[%clk 0:00:02.9]} 56. Nb6 {[%clk 0:00:04.5]} 56... Bc7
{[%clk 0:00:03.8]} 57. Nc4 {[%clk 0:00:04.7]} 57... b5 {[%clk 0:00:04.4]} 58.
Nd2 {[%clk 0:00:05.1]} 58... c5 {[%clk 0:00:04.7]} 59. Ne4 {[%clk 0:00:06]}
59... c4 {[%clk 0:00:04.6]} 60. bxc4 {[%clk 0:00:06.9]} 60... bxc4 {[%clk
0:00:05.5]} 61. Nc3 {[%clk 0:00:07.6]} 61... Ke5 {[%clk 0:00:05.9]} 62. Nb5
{[%clk 0:00:07.8]} 62... Ke6 {[%clk 0:00:06]} 63. Nxc7+ {[%clk 0:00:08.2]} 63...
Kd6 {[%clk 0:00:05.8]} 64. Nb5+ {[%clk 0:00:08.6]} 64... Kc5 {[%clk 0:00:06.5]}
65. Nc3 {[%clk 0:00:07.9]} 65... Kb4 {[%clk 0:00:06.8]} 66. Nd5+ {[%clk
0:00:07.2]} 66... Ka3 {[%clk 0:00:06.7]} 67. Kxf4 {[%clk 0:00:07.4]} 67... Kxa2
{[%clk 0:00:07.1]} 68. Ke3 {[%clk 0:00:07.8]} 68... Kb3 {[%clk 0:00:06]} 69. Kd2
{[%clk 0:00:08]} 69... Kb2 {[%clk 0:00:06.2]} 70. Nc3 {[%clk 0:00:06.8]} 70...
Kb3 {[%clk 0:00:06.6]} 71. Ne4 {[%clk 0:00:04.4]} 71... a4 {[%clk 0:00:06.3]}
72. Nc5+ {[%clk 0:00:04.9]} 72... Kb4 {[%clk 0:00:05.7]} 73. Nxa4 {[%clk
0:00:05.1]} 73... Kxa4 {[%clk 0:00:05.6]} 74. Kc3 {[%clk 0:00:05.4]} 74... Kb5
{[%clk 0:00:06.5]} 75. Kc2 {[%clk 0:00:04.3]} 75... Kb4 {[%clk 0:00:04.6]} 76.
Kb2 {[%clk 0:00:04.7]} 76... c3+ {[%clk 0:00:05.5]} 77. Kc2 {[%clk 0:00:05.1]}
77... Kc4 {[%clk 0:00:06.4]} 78. Kc1 {[%clk 0:00:05.6]} 78... Kb3 {[%clk
0:00:06.3]} 79. Kb1 {[%clk 0:00:06.2]} 79... c2+ {[%clk 0:00:06.4]} 80. Kc1
{[%clk 0:00:06.7]} 80... Kc3 {[%clk 0:00:06.8]} 1/2-1/2

[Event "*** Titled Tuesday Blitz"]
[Site "Chess.com"]
[Date "2020.05.19"]
[Round "1"]
[White "Gloomy_Wanderer"]
[Black "Gvetadze"]
[Result "1-0"]
[WhiteElo "2763"]
[BlackElo "2405"]
[TimeControl "180+1"]
[EndTime "12:09:29 PDT"]
[Termination "Gloomy_Wanderer won by resignation"]

1. d4 {[%clk 0:03:00]} 1... Nf6 {[%clk 0:02:59.4]} 2. Nf3 {[%clk 0:02:59.9]}
2... g6 {[%clk 0:03:00.3]} 3. c4 {[%clk 0:03:00]} 3... Bg7 {[%clk 0:03:00.4]} 4.
g3 {[%clk 0:03:00.3]} 4... O-O {[%clk 0:03:01.3]} 5. Bg2 {[%clk 0:03:00.6]} 5...
c5 {[%clk 0:03:01.2]} 6. O-O {[%clk 0:02:58.6]} 6... cxd4 {[%clk 0:03:00.4]} 7.
Nxd4 {[%clk 0:02:58.8]} 7... Nc6 {[%clk 0:03:00.4]} 8. Nc3 {[%clk 0:02:58.6]}
8... a6 {[%clk 0:03:00.3]} 9. c5 {[%clk 0:02:57.1]} 9... Qa5 {[%clk 0:02:56.8]}
10. Nb3 {[%clk 0:02:56.7]} 10... Qc7 {[%clk 0:02:55]} 11. Bf4 {[%clk 0:02:55.4]}
11... Qd8 {[%clk 0:02:48.1]} 12. Qd2 {[%clk 0:02:49.3]} 12... Nh5 {[%clk
0:02:47.5]} 13. Bh6 {[%clk 0:02:47.1]} 13... Bxh6 {[%clk 0:02:43]} 14. Qxh6
{[%clk 0:02:46]} 14... Qc7 {[%clk 0:02:38.2]} 15. Rfd1 {[%clk 0:02:33.8]} 15...
Qe5 {[%clk 0:02:35.5]} 16. Rd5 {[%clk 0:02:18.5]} 16... Qg7 {[%clk 0:02:30]} 17.
Qxg7+ {[%clk 0:02:12.1]} 17... Kxg7 {[%clk 0:02:28.3]} 18. Rad1 {[%clk
0:02:11.4]} 18... Nf6 {[%clk 0:02:27.8]} 19. R5d2 {[%clk 0:02:11.6]} 19... Ne5
{[%clk 0:02:24.2]} 20. Na4 {[%clk 0:02:07.7]} 20... d6 {[%clk 0:02:00.2]} 21.
cxd6 {[%clk 0:01:56]} 21... exd6 {[%clk 0:01:59.9]} 22. Rxd6 {[%clk 0:01:54.5]}
22... Be6 {[%clk 0:01:55.2]} 23. Bxb7 {[%clk 0:01:48]} 23... Rab8 {[%clk
0:01:53.4]} 24. Bxa6 {[%clk 0:01:46]} 24... Bxb3 {[%clk 0:01:51.4]} 25. axb3
{[%clk 0:01:46]} 25... Rxb3 {[%clk 0:01:50.9]} 26. R1d2 {[%clk 0:01:31.8]} 26...
Ne4 {[%clk 0:01:47.8]} 27. R6d4 {[%clk 0:01:01.4]} 27... Nxd2 {[%clk 0:01:46.2]}
28. Rxd2 {[%clk 0:01:02.3]} 28... Rb4 {[%clk 0:01:38.8]} 29. Nc5 {[%clk
0:00:57.8]} 29... Rfb8 {[%clk 0:01:27.2]} 30. b3 {[%clk 0:00:50.2]} 30... R8b6
{[%clk 0:01:21.4]} 31. f4 {[%clk 0:00:37.4]} 31... Ng4 {[%clk 0:01:08.9]} 32.
Bc4 {[%clk 0:00:32.8]} 32... Ne3 {[%clk 0:01:05.5]} 33. Nd7 {[%clk 0:00:27.4]}
33... Rb7 {[%clk 0:00:38.1]} 34. Ne5 {[%clk 0:00:19.8]} 34... f6 {[%clk
0:00:34.5]} 35. Nf3 {[%clk 0:00:19.5]} 35... Nxc4 {[%clk 0:00:33]} 36. bxc4
{[%clk 0:00:20.4]} 36... Rxc4 {[%clk 0:00:33]} 37. Kf2 {[%clk 0:00:21.3]} 37...
Rbc7 {[%clk 0:00:32.1]} 38. Rd6 {[%clk 0:00:20.2]} 38... R4c6 {[%clk 0:00:31.3]}
39. Rd3 {[%clk 0:00:19.6]} 39... Kf7 {[%clk 0:00:31.3]} 40. Rd4 {[%clk
0:00:18.4]} 40... Ke7 {[%clk 0:00:29.6]} 41. Rd3 {[%clk 0:00:17.6]} 41... Rd7
{[%clk 0:00:29.5]} 42. Ra3 {[%clk 0:00:16.6]} 42... Rc2 {[%clk 0:00:28.2]} 43.
Re3+ {[%clk 0:00:16.5]} 43... Kf7 {[%clk 0:00:27.8]} 44. Ne1 {[%clk 0:00:16.7]}
44... Ra2 {[%clk 0:00:27]} 45. Nf3 {[%clk 0:00:14.5]} 45... Re7 {[%clk
0:00:25.4]} 46. Rxe7+ {[%clk 0:00:14.5]} 46... Kxe7 {[%clk 0:00:26.3]} 47. Ke3
{[%clk 0:00:14.8]} 47... Ra3+ {[%clk 0:00:25.2]} 48. Kf2 {[%clk 0:00:14.6]}
48... Kd6 {[%clk 0:00:24.5]} 49. Nd2 {[%clk 0:00:14]} 49... Kd5 {[%clk
0:00:23.8]} 50. Nf3 {[%clk 0:00:14.2]} 50... Ra2 {[%clk 0:00:22.6]} 51. Ke3
{[%clk 0:00:14]} 51... Ra3+ {[%clk 0:00:22.4]} 52. Kf2 {[%clk 0:00:14.3]} 52...
Ke4 {[%clk 0:00:21.7]} 53. Nd2+ {[%clk 0:00:14.3]} 53... Kd4 {[%clk 0:00:21.6]}
54. Nf3+ {[%clk 0:00:14.6]} 54... Kc3 {[%clk 0:00:21.3]} 55. h3 {[%clk
0:00:12.2]} 55... Kc2 {[%clk 0:00:20.5]} 56. Nd4+ {[%clk 0:00:11.6]} 56... Kd1
{[%clk 0:00:20.3]} 57. Nb5 {[%clk 0:00:09.3]} 57... Rb3 {[%clk 0:00:18.2]} 58.
Nd4 {[%clk 0:00:09.4]} 58... Rb2 {[%clk 0:00:17.4]} 59. g4 {[%clk 0:00:08.1]}
59... Rd2 {[%clk 0:00:16]} 60. Ke3 {[%clk 0:00:08.4]} 60... Ra2 {[%clk 0:00:15]}
61. Kf2 {[%clk 0:00:07.7]} 61... Kd2 {[%clk 0:00:14.4]} 62. Nf3+ {[%clk
0:00:07.4]} 62... Kd1 {[%clk 0:00:13.8]} 63. Nd4 {[%clk 0:00:07.1]} 63... Ra4
{[%clk 0:00:13]} 64. Ke3 {[%clk 0:00:06.6]} 64... Ra3+ {[%clk 0:00:12.2]} 65.
Ke4 {[%clk 0:00:07.1]} 65... Rxh3 {[%clk 0:00:12]} 66. e3 {[%clk 0:00:07.4]}
66... Kd2 {[%clk 0:00:10.8]} 67. Nf3+ {[%clk 0:00:07.2]} 67... Ke2 {[%clk
0:00:10.5]} 68. Ng1+ {[%clk 0:00:07.4]} 68... Kf2 {[%clk 0:00:09.9]} 69. Nxh3+
{[%clk 0:00:08.3]} 69... Kg2 {[%clk 0:00:09.8]} 70. g5 {[%clk 0:00:06]} 70...
f5+ {[%clk 0:00:08.7]} 71. Ke5 {[%clk 0:00:06.5]} 71... Kxh3 {[%clk 0:00:08.7]}
72. Kf6 {[%clk 0:00:07.2]} 72... Kg4 {[%clk 0:00:08.5]} 73. Kg7 {[%clk
0:00:07.6]} 73... Kf3 {[%clk 0:00:08.6]} 74. Kxh7 {[%clk 0:00:07.8]} 74... Kxe3
{[%clk 0:00:09.5]} 75. Kxg6 {[%clk 0:00:08.2]} 75... Kxf4 {[%clk 0:00:10.4]} 76.
Kh6 {[%clk 0:00:06.5]} 76... Ke4 {[%clk 0:00:11.3]} 77. g6 {[%clk 0:00:06.9]}
77... f4 {[%clk 0:00:12.2]} 78. g7 {[%clk 0:00:07.8]} 78... f3 {[%clk 0:00:13]}
79. g8=Q {[%clk 0:00:08.5]} 79... f2 {[%clk 0:00:13.9]} 80. Qg2+ {[%clk
0:00:08.8]} 80... Ke3 {[%clk 0:00:14]} 81. Qf1 {[%clk 0:00:09.7]} 81... Kf3
{[%clk 0:00:14.4]} 82. Kh5 {[%clk 0:00:10.2]} 82... Kg3 {[%clk 0:00:14.1]} 83.
Kg5 {[%clk 0:00:10.7]} 83... Kf3 {[%clk 0:00:13.8]} 84. Kh4 {[%clk 0:00:10.9]}
84... Ke3 {[%clk 0:00:13.3]} 85. Kg3 {[%clk 0:00:10.9]} 1-0